bitfinex/quotes_ETHUSD_20240604
["timestamp","ask_amount","ask_price","bid_price","bid_amount"]
[1717535314294,0.5677264,3807.0,3806.7,1.435482]
[1717535320791,0.56772271,3807.0,3806.7,1.435482]
[1717535322292,0.56772689,3807.0,3806.7,1.435482]
[1717535331143,0.56772463,3807.0,3806.7,1.435482]
[1717535334550,2.62671,3807.1,3806.7,1.435482]
[1717535350866,3.41281,3806.9,3806.7,0.11421623]
[1717535351097,2.62681,3806.9,3806.8,1.32126577]
[1717535351299,3.19455588,3806.9,3806.8,1.43002628]
[1717535355311,3.19457458,3806.9,3806.8,1.43002628]
[1717535361001,2.62681,3806.9,3806.8,1.43002628]
[1717535362923,2.62665,3807.2,3806.8,1.43002628]
[1717535363128,0.56776374,3807.1,3806.8,1.43002628]
[1717535363284,0.56776374,3807.1,3806.8,1.32126577]
[1717535363989,0.56776374,3807.1,3806.8,3.82026577]
[1717535364308,0.56776374,3807.1,3806.9,0.10870836]
[1717535364482,0.56776374,3807.1,3807.0,1.32126577]
[1717535364678,0.56776374,3807.1,3807.0,1.42992197]
[1717535367805,2.62665,3807.2,3807.0,1.42992197]
[1717535368021,0.56776123,3807.1,3807.0,1.42992197]
[1717535368445,3.02756123,3807.1,3807.0,1.42992197]
[1717535368628,2.4598,3807.1,3807.0,1.32126577]
[1717535368800,3.02756906,3807.1,3807.0,1.32126577]
[1717535370008,2.62709,3806.5,3805.9,2.62744]
[1717535370204,2.62709,3806.5,3806.0,1.32126577]
[1717535370478,2.62709,3806.5,3806.0,1.43045211]
[1717535374274,5.07629,3806.5,3806.0,1.43045211]
[1717535382548,2.62725,3806.3,3806.0,1.43045211]
[1717535382879,3.2352,3806.5,3806.0,1.43045211]
[1717535382880,2.62736,3806.1,3806.0,1.43045211]
[1717535384474,2.62736,3806.1,3806.0,0.10918634]
[1717535384674,2.62736,3806.1,3805.4,0.786]
[1717535384861,2.62736,3806.1,3806.0,0.10953016]
[1717535385064,2.62736,3806.1,3805.5,1.32126577]
[1717535385273,2.62736,3806.1,3806.0,0.10953016]
[1717535385618,2.62736,3806.1,3805.5,1.32126577]
[1717535385790,2.62736,3806.1,3806.0,0.10953016]
[1717535386284,2.62736,3806.1,3805.5,1.32126577]
[1717535386601,2.62736,3806.1,3806.0,0.10953016]
[1717535386781,2.62736,3806.1,3805.5,1.32126577]
[1717535386985,2.62736,3806.1,3806.0,0.10953016]
[1717535387193,2.62736,3806.1,3805.5,1.32126577]
[1717535387388,2.62736,3806.1,3806.0,0.10953016]
[1717535387556,2.62736,3806.1,3805.5,1.32126577]
[1717535388382,2.62736,3806.1,3805.6,0.10973891]
[1717535388591,2.62736,3806.1,3805.7,1.32126577]
[1717535388901,2.62736,3806.1,3805.8,0.10963453]
[1717535389102,2.62736,3806.1,3805.9,1.32126577]
[1717535389410,2.62736,3806.1,3805.9,1.38084811]
[1717535389903,2.62736,3806.1,3805.9,1.27126577]
[1717535390413,2.62736,3806.1,3806.0,0.10961193]
[1717535390752,2.62736,3806.1,3805.9,1.27126577]
[1717535390999,2.62736,3806.1,3806.0,0.10961193]
[1717535391383,2.62736,3806.1,3805.9,1.27126577]
[1717535391599,2.62736,3806.1,3806.0,0.10961193]
[1717535392272,2.62736,3806.1,3805.9,1.27126577]
[1717535392448,2.62736,3806.1,3806.0,0.10961193]
[1717535392652,2.62736,3806.1,3805.9,1.27126577]
[1717535392892,2.62736,3806.1,3806.0,0.10961193]
[1717535393099,2.62736,3806.1,3806.0,1.32126577]
[1717535393308,2.62736,3806.1,3806.0,1.4308777]
[1717535394113,2.62736,3806.1,3806.0,0.10961193]
[1717535394114,8.76376,3806.1,3806.0,0.10961193]
[1717535394258,2.62762,3805.8,3804.9,3.96029698]
[1717535394464,2.62762,3805.8,3805.1,1.32126577]
[1717535394465,3.0,3805.7,3805.1,1.32126577]
[1717535394661,3.0,3805.7,3805.2,0.11009712]
[1717535394863,3.0,3805.7,3805.3,1.32126577]
[1717535395097,3.0,3805.7,3805.3,1.43131068]
[1717535395277,2.62772,3805.6,3805.3,1.43131068]
[1717535403702,4.91222,3805.6,3805.3,1.43131068]
[1717535404502,2.62772,3805.6,3805.3,1.43131068]
[1717535419957,3.0,3805.7,3805.3,1.43131068]
[1717535420153,3.0,3805.8,3805.3,1.43131068]
[1717535420358,0.56792044,3805.7,3805.3,1.43131068]
[1717535420811,0.56792044,3805.7,3805.5,3.69966577]
[1717535420977,0.56792044,3805.7,3805.6,7.11336577]
[1717535421175,0.56792044,3806.4,3806.1,2.62735]
[1717535421397,0.56792044,3806.4,3806.2,1.32126577]
[1717535421701,0.56792044,3806.4,3806.2,1.42755837]
[1717535421902,0.56792044,3806.7,3806.2,1.42755837]
[1717535422206,3.56792044,3806.7,3806.2,1.42755837]
[1717535422502,0.56792044,3806.6,3806.3,3.4132]
[1717535422798,7.3,3807.0,3806.5,3.41308]
[1717535422799,0.56792044,3806.9,3806.5,3.41308]
[1717535423039,0.56792044,3806.9,3806.6,1.32126577]
[1717535423306,7.3,3807.0,3806.6,1.42688731]
[1717535424203,3.0,3806.9,3806.6,1.42688731]
[1717535424577,3.0,3806.9,3806.6,1.32126577]
[1717535427615,3.0,3807.2,3806.6,1.32126577]
[1717535428231,3.0,3807.2,3806.7,0.10506101]
[1717535428410,3.0,3807.2,3806.8,1.32126577]
[1717535429203,2.62667,3807.1,3806.9,0.10484959]
[1717535429433,3.0,3807.0,3806.9,1.32126577]
[1717535431707,2.62667,3807.1,3806.9,1.32126577]
[1717535431894,7.91148,3807.4,3807.0,1.32126577]
[1717535432250,7.91148,3807.4,3807.1,0.13180419]
[1717535432406,7.91148,3807.4,3807.1,1.45306996]
[1717535432818,7.91148,3807.4,3807.2,1.32126577]
[1717535432819,5.62648,3807.4,3807.2,1.32126577]
[1717535433041,3.0,3807.4,3807.2,1.32126577]
[1717535433227,3.0,3807.4,3807.3,0.13169847]
[1717535433412,3.0,3807.6,3807.3,1.45296424]
[1717535433608,3.0,3807.6,3807.4,1.32126577]
[1717535434544,3.0,3807.6,3807.4,1.17220445]
[1717535434737,3.0,3807.6,3807.5,0.13159277]
[1717535434900,3.0,3807.6,3807.5,1.45285854]
[1717535437931,5.372,3807.9,3807.5,1.45285854]
[1717535438314,5.372,3807.9,3807.5,1.32126577]
[1717535440216,3.0,3807.9,3807.5,1.32126577]
[1717535445429,3.0,3807.9,3807.6,0.13112564]
[1717535449382,3.0,3807.9,3807.6,1.45239141]
[1717535449603,3.0,3808.1,3807.9,2.62611]
[1717535449745,7.3,3808.4,3808.0,1.32126577]
[1717535449946,3.1533,3808.6,3808.0,1.32126577]
[1717535450146,0.56757454,3808.5,3808.0,1.32126577]
[1717535451148,3.56757454,3808.5,3808.0,1.32126577]
[1717535451350,0.56757454,3808.4,3808.0,1.32126577]
[1717535451857,0.56757454,3808.4,3806.0,3.30716698]
[1717535451858,0.786,3808.2,3807.3,4.96072]
[1717535452059,4.35357454,3808.2,3807.4,1.32126577]
[1717535452250,4.35357454,3808.2,3807.4,1.44782652]
[1717535452251,0.56757454,3808.1,3807.4,1.44782652]
[1717535453344,0.56760089,3808.1,3807.4,1.44782652]
[1717535453780,3.0,3808.2,3807.4,1.44782652]
[1717535453944,0.56759974,3808.1,3807.4,1.44782652]
[1717535454139,0.56759974,3808.1,3807.4,1.32126577]
[1717535455545,3.19361974,3808.1,3807.4,1.32126577]
[1717535455749,2.62602,3808.1,3807.4,1.32126577]
[1717535457244,0.56760668,3808.0,3807.4,1.32126577]
[1717535457565,0.56760668,3808.0,3807.6,2.2641]
[1717535457786,3.0,3808.3,3807.7,1.32126577]
[1717535457984,0.56757853,3808.2,3807.7,1.44773531]
[1717535461069,3.19349853,3808.2,3807.7,1.44773531]
[1717535461269,3.56757853,3808.1,3807.7,1.44773531]
[1717535461608,3.0,3808.1,3807.7,1.44773531]
[1717535462795,3.0,3808.1,3807.7,4.07397531]
[1717535463092,3.0,3808.4,3807.7,4.85997531]
[1717535463485,0.56754293,3808.3,3807.7,4.85997531]
[1717535466493,0.56754293,3808.3,3807.7,4.07397531]
[1717535466807,3.19339293,3808.3,3807.7,4.07397531]
[1717535467101,3.56754293,3808.2,3807.7,4.07397531]
[1717535467473,3.0,3808.2,3807.7,4.07397531]
[1717535471816,3.0,3808.2,3807.9,2.6261]
[1717535471990,3.0,3808.4,3808.0,3.81366577]
[1717535472174,0.56753899,3808.3,3808.0,3.92692622]
[1717535476851,3.0,3808.6,3808.0,3.81366577]
[1717535477046,3.0,3808.6,3808.1,2.62597]
[1717535477196,0.56750159,3808.5,3808.2,1.32126577]
[1717535479033,0.56750159,3808.5,3808.3,0.11308232]
[1717535479190,0.56749926,3808.5,3808.4,1.32126577]
[1717535481386,3.0,3808.6,3808.4,1.32126577]
[1717535482195,0.56750041,3808.5,3808.4,1.32126577]
[1717535482626,3.0,3808.6,3808.4,1.32126577]
[1717535486245,0.56749739,3808.5,3808.4,1.32126577]
[1717535488937,1.35349739,3808.5,3808.4,1.32126577]
[1717535489460,0.56749739,3808.5,3808.4,1.32126577]
[1717535489649,5.2864,3808.6,3808.4,1.32126577]
[1717535490354,0.5674993,3808.5,3808.4,1.32126577]
[1717535490512,3.9792493,3808.5,3807.8,2.62613]
[1717535490742,0.5674993,3808.4,3807.9,1.32126577]
[1717535491071,0.5674993,3808.4,3808.0,0.11317912]
[1717535491247,0.5674993,3808.4,3808.1,1.32126577]
[1717535491447,2.62584,3808.3,3808.1,1.43439206]
[1717535491774,0.5674993,3808.2,3808.1,1.43439206]
[1717535491987,0.56758342,3808.2,3808.1,1.43439206]
[1717535494344,4.35358342,3808.2,3808.1,0.11312629]
[1717535494554,6.68538342,3808.2,3808.1,0.11312629]
[1717535494763,2.62601,3808.1,3807.5,2.3474]
[1717535495089,3.56759888,3808.0,3807.6,1.32126577]
[1717535495291,3.0,3808.0,3807.6,1.32126577]
[1717535505285,3.0,3808.0,3807.7,0.11223431]
[1717535505597,3.0,3808.0,3807.8,1.32126577]
[1717535506006,3.0,3808.0,3807.9,0.11206131]
[1717535512292,3.0,3808.0,3807.9,1.43332708]
[1717535515210,2.62582,3808.4,3808.0,2.3646]
[1717535515539,2.62582,3808.4,3808.1,1.32126577]
[1717535515540,0.56757295,3808.3,3808.1,1.32126577]
[1717535515745,0.56757295,3808.3,3808.1,1.43322141]
[1717535515911,5.62582,3808.4,3808.1,1.43322141]
[1717535518048,3.0,3808.4,3808.1,1.89160355]
[1717535518371,7.3,3808.5,3808.1,1.89160355]
[1717535518635,7.3,3808.5,3808.1,1.32126577]
[1717535521036,2.6256,3808.7,3808.1,1.32126577]
[1717535521375,3.56751479,3808.6,3808.1,1.32126577]
[1717535521587,0.56751479,3808.5,3808.1,1.32126577]
[1717535522661,3.0,3808.6,3808.1,1.32126577]
[1717535528149,3.0,3808.6,3808.1,2.10726577]
[1717535529978,3.0,3808.6,3808.1,1.32126577]
[1717535535264,3.0,3808.6,3808.1,2.10726577]
[1717535535691,3.0,3808.6,3808.2,0.10780053]
[1717535535902,3.0,3808.6,3808.3,1.32126577]
[1717535538406,3.0,3808.6,3808.3,2.10726577]
[1717535538713,7.3,3808.9,3808.5,3.41163]
[1717535538883,7.3,3808.9,3808.7,0.786]
[1717535539076,7.3,3808.9,3808.8,1.32126577]
[1717535539282,9.7893,3809.6,3808.8,1.32126577]
[1717535539693,2.6252,3809.3,3808.9,0.10743078]
[1717535539898,2.6252,3809.3,3809.0,1.32126577]
[1717535540409,2.6252,3809.3,3809.1,0.10380022]
[1717535540701,22.57,3809.2,3809.1,1.42506599]
[1717535541105,22.57,3809.2,3809.1,1.32126577]
[1717535544595,3.0,3809.2,3809.1,1.32126577]
[1717535544783,3.0,3809.2,3809.1,1.42496467]
[1717535547379,3.0,3809.2,3809.1,0.1036989]
[1717535547580,2.62542,3808.9,3808.2,3.41186]
[1717535547916,2.62542,3808.9,3808.3,1.42526982]
[1717535548530,2.62558,3808.7,3808.3,1.42526982]
[1717535549015,2.62571,3808.5,3808.3,1.42526982]
[1717535550518,3.41171,3808.5,3808.3,0.10400405]
[1717535550881,2.62593,3808.2,3807.7,2.3852]
[1717535551094,2.62593,3808.2,3807.8,1.32126577]
[1717535551490,2.62593,3808.2,3807.9,0.10424335]
[1717535551698,2.62593,3808.2,3808.0,1.32126577]
[1717535552217,2.62593,3808.2,3808.1,0.10415444]
[1717535552426,2.62593,3808.2,3808.1,1.42542021]
[1717535554712,2.62593,3808.2,3808.1,0.10415444]
[1717535554908,4.99553,3808.2,3808.1,0.10415444]
[1717535555119,4.99553,3808.2,3807.5,0.786]
[1717535555430,4.99553,3808.2,3807.6,1.32126577]
[1717535555641,4.99553,3808.2,3807.6,1.42569839]
[1717535557937,2.62606,3808.0,3807.6,1.42569839]
[1717535561404,2.62622,3807.8,3807.6,1.42569839]
[1717535593763,0.56761032,3807.7,3807.6,1.42569839]
[1717535595253,2.62622,3807.8,3807.6,1.42569839]
[1717535595698,0.56764171,3807.7,3807.6,1.42569839]
[1717535596446,0.56760969,3807.7,3807.6,1.42569839]
[1717535596788,0.56760705,3807.7,3807.6,1.42569839]
[1717535597645,2.62622,3807.8,3807.6,1.42569839]
[1717535597845,0.56760729,3807.7,3807.6,1.42569839]
[1717535601278,2.62622,3807.8,3807.6,2.15111723]
[1717535602350,2.62601,3808.1,3807.6,2.15111723]
[1717535602553,3.56760281,3808.0,3807.6,2.15111723]
[1717535602753,0.56760281,3807.9,3807.6,2.15111723]
[1717535603772,0.56760281,3808.0,3807.7,3.2139]
[1717535604101,0.56760281,3808.0,3807.8,2.12040449]
[1717535604303,5.62583,3808.4,3807.8,2.12040449]
[1717535604601,5.62583,3808.4,3807.8,1.41859791]
[1717535604804,5.62583,3808.4,3807.8,1.32126577]
[1717535605302,5.62583,3808.4,3807.9,0.0972793]
[1717535605604,5.62583,3808.4,3808.0,1.32126577]
[1717535605989,5.62583,3808.4,3808.1,0.09717363]
[1717535606170,5.62583,3808.4,3808.2,1.32126577]
[1717535606495,5.62583,3808.4,3808.2,1.41838657]
[1717535608668,3.0,3808.4,3808.2,1.41838657]
[1717535608910,3.0,3808.6,3808.2,3.73668657]
[1717535609283,3.0,3808.6,3808.2,3.63956577]
[1717535610166,9.9256,3808.7,3808.2,3.63956577]
[1717535610371,9.9256,3808.7,3808.3,0.09706797]
[1717535610573,9.9256,3808.7,3808.4,1.32126577]
[1717535615090,2.6256,3808.7,3808.4,1.32126577]
[1717535620971,2.6256,3808.7,3808.5,0.09680632]
[1717535621175,2.6256,3808.7,3808.6,1.32126577]
[1717535621332,5.6256,3808.7,3808.6,1.41801927]
[1717535625346,22.052,3809.7,3808.7,2.4822]
[1717535625656,14.98499,3809.6,3809.0,0.786]
[1717535625854,14.98499,3809.6,3809.1,3.80346577]
[1717535626250,7.3,3809.9,3809.4,2.62506]
[1717535626456,2.62458,3810.2,3809.7,0.786]
[1717535626677,2.62458,3810.2,3809.8,3.80346577]
[1717535627383,12.36,3810.3,3809.9,0.786]
[1717535627539,12.36,3810.3,3810.0,1.32126577]
[1717535628381,19.57,3810.8,3810.0,1.32126577]
[1717535628382,22.19413,3810.8,3810.0,1.32126577]
[1717535628579,2.62413,3810.8,3810.1,0.786]
[1717535628882,2.62413,3810.8,3810.2,1.32126577]
[1717535630081,3.0,3810.7,3810.2,1.32126577]
[1717535640682,2.62428,3810.6,3810.2,1.32126577]
[1717535641407,2.62439,3810.4,3810.2,1.32126577]
[1717535643478,2.62439,3810.4,3810.3,0.09469368]
[1717535643813,2.62439,3810.4,3810.3,1.32126577]
[1717535650451,0.786,3810.4,3809.5,2.277]
[1717535650714,0.786,3810.4,3809.6,1.32126577]
[1717535650894,0.786,3810.4,3809.6,1.41587474]
[1717535651588,2.6247,3810.0,3809.6,1.41587474]
[1717535651988,2.6247,3810.0,3809.6,1.32126577]
[1717535652311,2.6247,3810.0,3809.7,0.09465639]
[1717535652625,2.6247,3810.0,3809.8,1.32126577]
[1717535652935,2.6247,3810.0,3809.8,1.41586937]
[1717535656029,2.6247,3810.0,3809.8,1.32126577]
[1717535664698,3.4107,3810.0,3809.1,2.4754]
[1717535664940,3.4107,3810.0,3809.2,1.32126577]
[1717535665165,0.56730153,3809.9,3809.2,1.41268817]
[1717535665328,2.62513,3809.4,3809.2,1.41268817]
[1717535666291,2.62513,3809.4,3809.2,1.67998423]
[1717535671825,2.62513,3809.4,3809.2,1.41268817]
[1717535690131,0.56740277,3809.3,3809.2,1.41268817]
[1717535690423,0.56740277,3809.3,3809.2,1.32126577]
[1717535690769,2.62513,3809.4,3809.2,1.32126577]
[1717535691169,0.56739767,3809.3,3809.2,1.32126577]
[1717535693243,2.91519767,3809.3,3809.2,1.32126577]
[1717535694726,2.3478,3809.3,3809.2,1.32126577]
[1717535695028,2.91520131,3809.3,3809.2,1.32126577]
[1717535700390,2.91520341,3809.3,3809.2,1.32126577]
[1717535700975,0.56740341,3809.3,3809.2,1.32126577]
[1717535701290,2.62563,3808.7,3808.1,2.33]
[1717535701669,2.62563,3808.7,3808.2,0.06859743]
[1717535702045,2.62563,3808.7,3808.2,0.85459743]
[1717535702244,2.62563,3808.7,3808.3,1.32126577]
[1717535702468,2.62563,3808.7,3808.3,1.38982394]
[1717535711569,9.6478,3809.1,3808.3,1.38982394]
[1717535711570,2.62572,3808.5,3808.3,1.38982394]
[1717535718701,2.62572,3808.5,3808.3,1.38982394]
[1717535721283,2.62554,3808.8,3808.3,1.38982394]
[1717535721796,2.62554,3808.8,3808.3,1.32126577]
[1717535734211,2.62566,3808.6,3808.3,1.32126577]
[1717535734414,2.62566,3808.6,3808.4,0.06771705]
[1717535734629,2.62566,3808.6,3808.5,1.32126577]
[1717535734828,2.62566,3808.6,3808.5,1.38893]
[1717535735446,2.62566,3808.6,3808.5,0.06766423]
[1717535735625,2.62594,3808.2,3807.6,2.3592]
[1717535735949,2.62594,3808.2,3807.7,1.32126577]
[1717535738410,2.62576,3808.5,3807.7,3.94750577]
[1717535738606,2.62576,3808.5,3807.7,4.65677635]
[1717535740167,2.62584,3808.3,3807.7,4.65677635]
[1717535744717,2.62569,3808.6,3807.7,4.65677635]
[1717535745303,2.62569,3808.6,3807.9,2.6261]
[1717535745503,7.3,3808.7,3808.1,3.41195]
[1717535745707,7.3,3808.7,3808.2,2.03536735]
[1717535745909,7.3,3808.7,3808.2,2.10341535]
[1717535746840,2.62549,3808.9,3808.2,2.10341535]
[1717535747027,3.0,3808.8,3808.2,2.10341535]
[1717535747432,7.3,3809.2,3808.6,2.2884]
[1717535747762,7.3,3809.2,3809.0,0.786]
[1717535747908,7.3,3809.8,3809.1,1.32126577]
[1717535748107,2.62506,3809.5,3809.1,1.32126577]
[1717535748622,2.62506,3809.5,3809.1,3.60966577]
[1717535748823,2.62506,3809.5,3809.2,0.786]
[1717535749053,3.0,3809.4,3809.3,1.32126577]
[1717535749271,7.3,3809.8,3809.3,2.10726577]
[1717535749464,7.3,3809.8,3809.3,2.17438538]
[1717535749667,7.3,3809.8,3809.3,2.10726577]
[1717535750733,7.3,3809.8,3809.3,4.73239577]
[1717535752262,7.3,3809.8,3809.5,3.41099]
[1717535752433,7.3,3809.8,3809.6,1.32126577]
[1717535752635,22.19464,3810.1,3809.6,1.32126577]
[1717535752838,2.62464,3810.1,3809.6,1.32126577]
[1717535753357,2.62464,3810.1,3809.7,0.06690844]
[1717535753523,2.62464,3810.1,3809.8,1.32126577]
[1717535753948,3.0,3810.3,3809.9,0.06680287]
[1717535754163,3.0,3810.2,3810.0,1.32126577]
[1717535754692,3.0,3810.3,3810.0,1.32126577]
[1717535756397,2.7,3810.3,3810.0,1.32126577]
[1717535756772,7.3,3810.4,3810.0,1.32126577]
[1717535758501,3.0,3810.3,3810.0,1.32126577]
[1717535758704,2.62447,3810.3,3810.0,1.32126577]
[1717535758898,3.0,3810.2,3810.0,1.32126577]
[1717535760304,2.62447,3810.3,3810.0,1.32126577]
[1717535760501,3.0,3810.2,3810.0,1.32126577]
[1717535760720,3.0,3810.2,3810.1,0.0666973]
[1717535760916,3.0,3810.2,3810.1,1.38796307]
[1717535763999,3.0,3810.2,3810.1,1.32126577]
[1717535764509,3.0,3810.2,3810.1,1.38778674]
[1717535765725,3.0,3810.2,3810.1,0.06652097]
[1717535766028,2.62473,3810.0,3809.2,3.41118]
[1717535766198,2.62473,3810.0,3809.3,1.32126577]
[1717535766402,2.62473,3810.0,3809.3,1.38820905]
[1717535768692,3.0,3810.2,3809.3,1.38820905]
[1717535768693,2.62483,3809.8,3809.3,1.38820905]
[1717535768899,2.62497,3809.6,3809.3,1.38820905]
[1717535776469,2.62508,3809.4,3809.3,0.06694328]
[1717535776625,6.97850674,3809.4,3809.3,0.06694328]
[1717535776826,6.31120674,3809.4,3809.3,0.06694328]
[1717535777025,2.62536,3809.0,3808.4,2.4479]
[1717535777231,2.62536,3809.0,3808.5,1.32126577]
[1717535779287,2.62536,3809.0,3808.6,0.06740245]
[1717535779515,2.62536,3809.0,3808.7,1.32126577]
[1717535779950,2.62536,3809.0,3808.8,0.06729682]
[1717535780149,2.62536,3809.0,3808.9,1.32126577]
[1717535781598,2.62536,3809.0,3808.2,3.41186]
[1717535781599,2.62557,3808.7,3808.0,2.4479]
[1717535781885,2.62557,3808.7,3808.1,2.61466277]
[1717535782069,2.62557,3808.7,3808.1,2.68232935]
[1717535782743,2.62557,3808.7,3808.1,5.30826935]
[1717535783059,2.62557,3808.7,3808.3,0.786]
[1717535783373,2.62557,3808.7,3808.4,1.38883085]
[1717535783574,2.62557,3808.7,3808.4,1.91964764]
[1717535786371,2.62557,3808.7,3808.4,1.38883085]
[1717535786862,2.62557,3808.7,3808.5,0.06763982]
[1717535787065,2.62557,3808.7,3808.6,1.32126577]
[1717535787299,2.62557,3808.7,3808.6,1.38885005]
[1717535789062,2.62557,3808.7,3808.6,0.06758428]
[1717535789263,5.03557,3808.7,3808.6,0.06758428]
[1717535789497,2.62573,3808.5,3807.9,0.786]
[1717535789704,2.62573,3808.5,3808.0,1.95577253]
[1717535791679,2.62587,3808.3,3808.0,1.38693553]
[1717535803342,2.4304,3808.2,3808.0,1.38693553]
[1717535804702,2.62587,3808.3,3808.0,1.38693553]
[1717535805745,3.41187,3808.3,3808.0,1.38693553]
[1717535806221,0.786,3808.1,3808.0,0.06566976]
[1717535806611,2.62606,3808.0,3807.7,0.01]
[1717535806816,2.62606,3808.0,3807.7,1.33126577]
[1717535807050,2.62606,3808.0,3807.8,0.06606042]
[1717535807432,2.62606,3808.0,3807.7,1.33126577]
[1717535807654,2.62606,3808.0,3807.9,0.06600758]
[1717535807798,2.62606,3808.0,3807.8,0.06606042]
[1717535808002,2.62606,3808.0,3807.7,1.33126577]
[1717535808202,2.62606,3808.0,3807.9,0.06600758]
[1717535808441,2.62606,3808.0,3807.8,0.06606042]
[1717535808605,2.62606,3808.0,3807.7,1.33126577]
[1717535808806,2.62606,3808.0,3807.9,0.06600758]
[1717535809031,2.62606,3808.0,3807.7,1.33126577]
[1717535809032,2.62606,3808.0,3807.8,0.06606042]
[1717535809198,2.62606,3808.0,3807.7,1.33126577]
[1717535809405,2.62606,3808.0,3807.9,0.06600758]
[1717535809724,2.62606,3808.0,3807.7,1.33126577]
[1717535809922,2.62606,3808.0,3807.8,0.06606042]
[1717535810119,2.62606,3808.0,3807.7,1.33126577]
[1717535810322,2.62606,3808.0,3807.8,0.06622059]
[1717535810522,2.62606,3808.0,3807.7,0.01]
[1717535810850,5.79788,3807.8,3807.7,0.01]
[1717535814759,8.79788,3807.8,3807.7,0.01]
[1717535817739,8.01188,3807.8,3807.7,0.01]
[1717535831104,8.79788,3807.8,3807.7,0.01]
[1717535832769,11.42406,3807.8,3807.7,0.01]
[1717535833381,11.99170135,3807.8,3807.7,0.01]
[1717535835908,11.99170116,3807.8,3807.7,0.01]
[1717535841800,14.61788116,3807.8,3807.7,0.01]
[1717535842001,15.16788116,3807.8,3807.7,0.01]
[1717535842676,23.04658116,3807.8,3807.7,0.01]
[1717535842888,34.30617116,3807.8,3807.7,0.01]
[1717535844093,23.03238116,3807.8,3807.7,0.01]
[1717535844483,41.01505316,3807.8,3807.7,0.01]
[1717535844683,39.01310616,3807.8,3807.7,0.01]
[1717535847513,39.01322181,3807.8,3807.7,0.01]
[1717535847887,2.62708,3806.5,3806.4,2.4543]
[1717535848104,2.62708,3806.5,3806.4,3.77556577]
[1717535848414,2.62708,3806.5,3806.4,0.06767222]
[1717535848839,2.62708,3806.5,3806.1,2.4543]
[1717535848995,2.62708,3806.5,3806.2,1.32126577]
[1717535849176,2.62708,3806.5,3806.2,1.38904376]
[1717535858180,2.62708,3806.5,3806.2,1.77337814]
[1717535859997,2.62688,3806.8,3806.3,2.3347]
[1717535860196,2.62688,3806.8,3806.4,1.32126577]
[1717535860400,2.62688,3806.8,3806.5,0.06772258]
[1717535860616,2.62688,3806.8,3806.6,1.32126577]
[1717535860794,2.62688,3806.8,3806.6,1.38893547]
[1717535874444,0.56776599,3806.7,3806.6,1.38893547]
[1717535874802,2.62688,3806.8,3806.6,1.38893547]
[1717535874997,0.56776802,3806.7,3806.6,1.32126577]
[1717535875321,2.62688,3806.8,3806.6,1.38884037]
[1717535875514,2.62688,3806.8,3806.6,1.32126577]
[1717535875734,8.4464562,3806.7,3806.6,1.32126577]
[1717535880427,8.4464562,3806.7,3806.6,0.06540835]
[1717535880655,2.62717,3806.4,3805.8,2.3297]
[1717535880859,2.62717,3806.4,3805.9,1.32126577]
[1717535881040,2.62717,3806.4,3805.9,1.38704702]
[1717535886483,2.6273,3806.2,3805.9,1.38704702]
[1717535887944,2.6273,3806.2,3805.9,1.32126577]
[1717535888337,2.6273,3806.2,3806.0,0.06579343]
[1717535888585,2.6273,3806.2,3806.1,1.32126577]
[1717535888889,2.6273,3806.2,3806.1,1.38700631]
[1717535889258,2.6273,3806.2,3806.1,1.32126577]
[1717535889569,2.6273,3806.2,3806.1,1.38700631]
[1717535890254,3.19512433,3806.2,3806.1,1.38700631]
[1717535890980,3.19512339,3806.2,3806.1,1.38700631]
[1717535893381,2.6273,3806.2,3806.1,1.38700631]
[1717535901964,3.19512314,3806.2,3806.1,1.38700631]
[1717535914513,0.56782314,3806.2,3806.1,1.38700631]
[1717535914725,0.56782314,3806.4,3806.1,1.38700631]
[1717535916774,0.56781613,3806.4,3806.1,1.38700631]
[1717535920406,0.56781613,3806.4,3806.2,2.3267]
[1717535920614,0.56781613,3806.4,3806.3,1.32126577]
[1717535920783,6.19483613,3806.6,3806.3,1.38638463]
[1717535920995,0.56781613,3806.5,3806.3,1.38638463]
[1717535921676,0.56778795,3806.5,3806.3,1.38638463]
[1717535923808,3.0,3806.6,3806.3,1.38638463]
[1717535924009,0.56774486,3806.5,3806.3,1.38638463]
[1717535924326,3.0,3806.6,3806.3,1.38638463]
[1717535924626,7.8787,3806.7,3806.6,2.3388]
[1717535924837,7.8787,3806.7,3806.6,3.66006577]
[1717535924999,7.8787,3806.7,3806.6,3.72502599]
[1717535925638,7.8787,3806.7,3806.6,6.35203599]
[1717535934914,7.8787,3806.7,3806.6,7.13803599]
[1717535935113,7.8787,3806.7,3806.6,8.18582084]
[1717535936366,7.8787,3806.7,3806.6,10.81283084]
[1717535937895,2.24308356,3806.7,3806.6,13.43984084]
[1717535938104,0.96639246,3806.7,3806.6,13.43984084]
[1717535938273,7.3,3807.2,3807.1,9.05700577]
[1717535938473,7.3,3807.2,3807.1,9.84300577]
[1717535938916,7.3,3807.2,3807.1,9.90503846]
[1717535939294,7.3,3807.2,3807.1,12.90503846]
[1717535939496,7.3,3807.2,3807.1,14.33244626]
[1717535942994,7.3,3807.9,3807.8,2.62618]
[1717535943189,7.3,3808.6,3808.2,2.62589]
[1717535943404,7.3,3808.6,3808.3,1.32126577]
[1717535944611,7.3,3808.6,3808.3,0.82126577]
[1717535948829,2.62543,3808.9,3808.3,0.82126577]
[1717535949027,5.27573545,3808.9,3808.3,0.82126577]
[1717535949207,2.62543,3808.9,3808.3,0.82126577]
[1717535951742,2.3715,3808.8,3808.3,0.82126577]
[1717535964407,2.62557,3808.7,3808.3,0.82126577]
[1717535964810,2.62557,3808.7,3808.4,0.06064596]
[1717535965012,2.62557,3808.7,3808.5,1.32126577]
[1717535965518,2.62557,3808.7,3808.6,0.06054031]
[1717535965721,3.19302428,3808.7,3808.6,1.38180608]
[1717535969938,3.19302604,3808.7,3808.6,1.38180608]
[1717535970665,3.19302606,3808.7,3808.6,1.38180608]
[1717535974250,3.19302606,3808.7,3808.6,1.38180608]
[1717535977114,2.62557,3808.7,3808.6,1.38180608]
[1717535977343,3.19301888,3808.7,3808.6,1.38180608]